fUST/lending_fUST_20240728
["ID","MTS","AMOUNT","RATE_DAILY","PERIOD"]
[333411681,1722115850701,-500.0,0.00015067,2]
[333411683,1722115850712,-500.0,0.00015068,2]
[333411685,1722115850721,-500.0,0.00015068,2]
[333411687,1722115850731,-500.0,0.00015068,2]
[333411689,1722115850741,-500.0,0.00015068,2]
[333411692,1722115850751,-500.0,0.00015068,2]
[333411694,1722115850762,-500.0,0.00015068,2]
[333411696,1722115850774,-500.0,0.00015068,2]
[333411698,1722115850783,-500.0,0.00015068,2]
[333411700,1722115850794,-500.0,0.00015068,2]
[333411702,1722115850804,-500.0,0.00015068,2]
[333411704,1722115850814,-500.0,0.00015068,2]
[333411706,1722115850823,-500.0,0.00015068,2]
[333411708,1722115850832,-231.34,0.00015068,2]
[333411710,1722115850841,-500.0,0.00015068,2]
[333411712,1722115850851,-500.0,0.00015068,2]
[333411714,1722115850861,-755.62,0.00015068,2]
[333411716,1722115850870,-500.0,0.00015068,2]
[333411719,1722115850882,-500.0,0.00015068,2]
[333411721,1722115850892,-726.78,0.00015068,2]
[333411723,1722115850902,-472.22229863,0.00015068,2]
[333411725,1722115850913,-500.0,0.00015068,2]
[333411727,1722115850923,-500.0,0.00015068,2]
[333411729,1722115850934,-2353.65,0.00015068,2]
[333411731,1722115850947,-318.42,0.00015068,2]
[333411733,1722115850958,-999.54,0.00015068,2]
[333411735,1722115850968,-500.0,0.00015068,2]
[333411738,1722115850978,-500.0,0.00015068,2]
[333411740,1722115850987,-500.0,0.00015068,2]
[333411742,1722115850997,-500.0,0.00015068,2]
[333411761,1722115851009,-377.91131332,0.00015068,2]
[333411764,1722115851193,-581.36,0.00015068,2]
[333411766,1722115851204,-500.0,0.00015068,2]
[333411768,1722115851213,-500.0,0.00015068,2]
[333411770,1722115851224,-620.82,0.00015068,2]
[333411772,1722115851233,-500.0,0.00015068,2]
[333411774,1722115851242,-632.56669488,0.00015068,2]
[333411776,1722115851252,-500.0,0.00015068,2]
[333411778,1722115851261,-500.0,0.00015068,2]
[333411780,1722115851270,-336.07852163,0.00015068,2]
[333411782,1722115851280,-500.0,0.00015068,2]
[333411784,1722115851291,-696.25,0.00015068,2]
[333411786,1722115851301,-1033.33,0.00015068,2]
[333411788,1722115851310,-1795.02,0.00015068,2]
[333411790,1722115851319,-500.0,0.00015068,2]
[333411792,1722115851329,-500.0,0.00015068,2]
[333411794,1722115851338,-500.0,0.00015068,2]
[333411796,1722115851347,-500.0,0.00015068,2]
[333411798,1722115851357,-500.0,0.00015068,2]
[333411800,1722115851367,-500.0,0.00015068,2]
[333411802,1722115851377,-717.11,0.00015068,2]
[333411804,1722115851387,-500.0,0.00015068,2]
[333411806,1722115851396,-500.0,0.00015068,2]
[333411808,1722115851406,-500.0,0.00015068,2]
[333411810,1722115851416,-500.0,0.00015068,2]
[333411812,1722115851426,-581.03,0.00015068,2]
[333411814,1722115851435,-500.0,0.00015068,2]
[333411816,1722115851446,-632.23,0.00015068,2]
[333411818,1722115851455,-944.79594802,0.000151,2]
[333411820,1722115851465,-587.0,0.00015199,2]
[333411822,1722115851474,-13434.3319603,0.00015332,2]
[333411824,1722115851484,-500.0,0.00015341,2]
[333411826,1722115851493,-500.0,0.00015342,2]
[333411828,1722115851504,-578.29230627,0.00015342,2]
[333411830,1722115851513,-500.0,0.00015342,2]
[333411832,1722115851523,-500.0,0.00015342,2]
[333411834,1722115851533,-500.0,0.00015342,2]
[333411836,1722115851545,-500.0,0.00015342,2]
[333411838,1722115851562,-500.0,0.00015342,2]
[333411840,1722115851572,-500.0,0.00015342,2]
[333411842,1722115851581,-500.0,0.00015342,2]
[333411844,1722115851591,-500.0,0.00015342,2]
[333411846,1722115851600,-500.0,0.00015342,2]
[333411848,1722115851609,-500.0,0.00015342,2]
[333411850,1722115851618,-500.0,0.00015342,2]
[333411852,1722115851628,-500.0,0.00015342,2]
[333411854,1722115851638,-755.62,0.00015342,2]
[333411856,1722115851649,-500.0,0.00015342,2]
[333411858,1722115851659,-500.0,0.00015342,2]
[333411860,1722115851669,-726.78,0.00015342,2]
[333411862,1722115851678,-500.0,0.00015342,2]
[333411864,1722115851688,-500.0,0.00015342,2]
[333411866,1722115851697,-2353.65,0.00015342,2]
[333411868,1722115851707,-999.54,0.00015342,2]
[333411870,1722115851716,-500.0,0.00015342,2]
[333411872,1722115851726,-500.0,0.00015342,2]
[333411874,1722115851736,-500.0,0.00015342,2]
[333411876,1722115851745,-500.0,0.00015342,2]
[333411879,1722115851755,-581.36,0.00015342,2]
[333411880,1722115851764,-500.0,0.00015342,2]
[333411882,1722115851774,-500.0,0.00015342,2]
[333411884,1722115851783,-620.82,0.00015342,2]
[333411886,1722115851795,-500.0,0.00015342,2]
[333411888,1722115851804,-500.0,0.00015342,2]
[333411890,1722115851814,-500.0,0.00015342,2]
[333411892,1722115851823,-500.0,0.00015342,2]
[333411894,1722115851833,-696.25,0.00015342,2]
[333411896,1722115851843,-151.0,0.00015342,2]
[333411898,1722115851852,-1033.33,0.00015342,2]
[333411900,1722115851863,-151.0,0.00015342,2]
[333411902,1722115851873,-1795.02,0.00015342,2]
[333411904,1722115851882,-500.0,0.00015342,2]
[333411906,1722115851892,-151.0,0.00015342,2]
[333411908,1722115851902,-500.0,0.00015342,2]
[333411910,1722115851911,-267.043893,0.00015342,2]
[333411912,1722115851921,-500.0,0.00015342,2]
[333411914,1722115851933,-500.0,0.00015342,2]
[333411917,1722115851944,-500.0,0.00015342,2]
[333411919,1722115851954,-500.0,0.00015342,2]
[333411921,1722115851965,-717.11,0.00015342,2]
[333411923,1722115851974,-500.0,0.00015342,2]
[333411925,1722115851983,-500.0,0.00015342,2]
[333411927,1722115851993,-500.0,0.00015342,2]
[333411929,1722115852003,-500.0,0.00015342,2]
[333411931,1722115852012,-320.800489,0.00015342,2]
[333411932,1722115852021,-581.03,0.00015342,2]
[333411935,1722115852031,-320.800489,0.00015342,2]
[333411937,1722115852042,-500.0,0.00015342,2]
[333411939,1722115852052,-617.594083,0.00015342,2]
[333411941,1722115852061,-617.594083,0.00015342,2]
[333411943,1722115852072,-632.23,0.00015342,2]
[333411945,1722115852085,-151.0,0.00015342,2]
[333411946,1722115852094,-13434.3319603,0.00015606,2]
[333411948,1722115852104,-171.68,0.00015615,2]
[333411950,1722115852113,-500.0,0.00015616,2]
[333411952,1722115852124,-500.0,0.00015616,2]
[333411954,1722115852133,-500.0,0.00015616,2]
[333411956,1722115852142,-198.44451285,0.00015616,2]
[333411958,1722115852152,-500.0,0.00015616,2]
[333411960,1722115852162,-500.0,0.00015616,2]
[333411962,1722115852172,-500.0,0.00015616,2]
[333411964,1722115852184,-500.0,0.00015616,2]
[333411966,1722115852195,-266.53997352,0.00015616,2]
[333411968,1722115852204,-319.71069574,0.00015616,2]
[333411970,1722115852216,-500.0,0.00015616,2]
[333411972,1722115852227,-314.14605319,0.00015616,2]
[333411974,1722115852238,-500.0,0.00015616,2]
[333411976,1722115852250,-755.62,0.00015616,2]
[333411978,1722115852262,-500.0,0.00015616,2]
[333411980,1722115852271,-500.0,0.00015616,2]
[333411982,1722115852280,-726.78,0.00015616,2]
[333411984,1722115852291,-500.0,0.00015616,2]
[333411986,1722115852301,-500.0,0.00015616,2]
[333411988,1722115852310,-2353.65,0.00015616,2]
[333411990,1722115852319,-999.54,0.00015616,2]
[333411992,1722115852329,-500.0,0.00015616,2]
[333411994,1722115852339,-500.0,0.00015616,2]
[333411996,1722115852349,-500.0,0.00015616,2]
[333411998,1722115852358,-500.0,0.00015616,2]
[333412000,1722115852368,-581.36,0.00015616,2]
[333412002,1722115852377,-500.0,0.00015616,2]
[333412003,1722115852387,-500.0,0.00015616,2]
[333412005,1722115852397,-620.82,0.00015616,2]
[333412007,1722115852407,-500.0,0.00015616,2]
[333412009,1722115852417,-500.0,0.00015616,2]
[333412011,1722115852426,-500.0,0.00015616,2]
[333412014,1722115852437,-500.0,0.00015616,2]
[333412016,1722115852447,-696.25,0.00015616,2]
[333412018,1722115852456,-1033.33,0.00015616,2]
[333412020,1722115852467,-1795.02,0.00015616,2]
[333412022,1722115852476,-500.0,0.00015616,2]
[333412023,1722115852485,-500.0,0.00015616,2]
[333412025,1722115852495,-500.0,0.00015616,2]
[333412027,1722115852504,-500.0,0.00015616,2]
[333412029,1722115852513,-500.0,0.00015616,2]
[333412031,1722115852523,-500.0,0.00015616,2]
[333412033,1722115852533,-717.11,0.00015616,2]
[333412035,1722115852545,-500.0,0.00015616,2]
[333412037,1722115852554,-245.2584205,0.00015616,2]
[333412039,1722115852564,-500.0,0.00015616,2]
[333412042,1722115852575,-500.0,0.00015616,2]
[333412044,1722115852585,-581.03,0.00015616,2]
[333412046,1722115852595,-500.0,0.00015616,2]
[333412048,1722115852605,-632.23,0.00015616,2]
[333412050,1722115852615,-13434.3319603,0.00015687,2]
[333412052,1722115852625,-1197.78855489,0.00015707,2]
[333412054,1722115852635,-2653.27990867,0.00015707,2]
[333412056,1722115852644,-5923.98807252,0.00015707,2]
[333412058,1722115852654,-13433.33922982,0.00015707,2]
[333412060,1722115852663,-81236.64333245,0.00015707,2]
[333412062,1722115852673,-4104.24296441,0.00015707,2]
[333412064,1722115852683,-3820.96350919,0.00015707,2]
[333412066,1722115852692,-8135.33308875,0.00015707,2]
[333412068,1722115852702,-8022.58239401,0.00015707,2]
[333412070,1722115852711,-2230.3473866,0.00015707,2]
[333412072,1722115852721,-18500.09878832,0.00015707,2]
[333412074,1722115852730,-3383.07823764,0.00015707,2]
[333412076,1722115852740,-2759.45445656,0.00015707,2]
[333412078,1722115852750,-7711.67392578,0.00015707,2]
[333412080,1722115852759,-63692.49380302,0.00015707,2]
[333412082,1722115852769,-3016.03196266,0.00015707,2]
[333412084,1722115852780,-2277.23196395,0.00015707,3]
[333412086,1722115852789,-47796.22167577,0.00015707,2]
[333412088,1722115852801,-67180.11642599,0.00015707,2]
[333412090,1722115852810,-1500.0,0.00015707,2]
[333412092,1722115852819,-4076.35329955,0.00015707,2]
[333412094,1722115852828,-2249.43287473,0.00015707,2]
[333412095,1722115852837,-151.0,0.00015707,2]
[333412097,1722115852847,-151.0,0.00015707,2]
[333412099,1722115852856,-151.0,0.00015707,2]
[333412101,1722115852866,-151.0,0.00015707,2]
[333412103,1722115852876,-151.0,0.00015707,2]
[333412105,1722115852885,-262.439499,0.00015707,2]
[333412107,1722115852894,-286.82483,0.00015707,2]
[333412109,1722115852904,-151.0,0.00015707,2]
[333412111,1722115852915,-151.0,0.00015707,2]
[333412113,1722115852927,-151.0,0.00015707,2]
[333412115,1722115852938,-151.0,0.00015707,2]
[333412118,1722115852948,-282.96873,0.00015707,2]
[333412120,1722115852958,-282.96873,0.00015707,2]
[333412121,1722115852967,-151.0,0.00015707,2]
[333412123,1722115852977,-151.0,0.00015707,2]
[333412125,1722115852986,-151.0,0.00015707,2]
[333412127,1722115852996,-151.0,0.00015707,2]
[333412129,1722115853006,-151.0,0.00015707,2]
[333412131,1722115853015,-151.0,0.00015707,2]
[333412133,1722115853025,-151.0,0.00015707,2]
[333412135,1722115853034,-271.164188,0.00015707,2]
[333412137,1722115853046,-151.0,0.00015707,2]
[333412139,1722115853055,-151.0,0.00015707,2]
[333412141,1722115853065,-151.0,0.00015707,2]
[333412143,1722115853074,-151.0,0.00015707,2]
[333412146,1722115853088,-151.0,0.00015707,2]
[333412148,1722115853098,-151.0,0.00015707,2]
[333412150,1722115853107,-151.0,0.00015707,2]
[333412151,1722115853117,-151.0,0.00015707,2]
[333412153,1722115853127,-299.508339,0.00015707,2]
[333412155,1722115853136,-299.508339,0.00015707,2]
[333412157,1722115853145,-299.508339,0.00015707,2]
[333412159,1722115853155,-299.508339,0.00015707,2]
[333412161,1722115853166,-151.0,0.00015707,2]
[333412164,1722115853177,-151.0,0.00015707,2]
[333412166,1722115853186,-151.0,0.00015707,2]
[333412168,1722115853196,-151.0,0.00015707,2]
[333412169,1722115853205,-151.0,0.00015707,2]
[333412171,1722115853215,-151.0,0.00015707,2]
[333412173,1722115853224,-151.0,0.00015707,2]
[333412175,1722115853234,-151.0,0.00015707,2]
[333412177,1722115853243,-151.0,0.00015707,2]
[333412179,1722115853253,-151.0,0.00015707,2]
[333412181,1722115853262,-151.0,0.00015707,2]
[333412183,1722115853271,-151.0,0.00015707,2]
[333412185,1722115853281,-151.0,0.00015707,2]
[333412187,1722115853290,-151.0,0.00015707,2]
[333412189,1722115853301,-252.63561,0.00015707,2]
[333412191,1722115853310,-65024.50571339,0.00015707,2]
[333412193,1722115853319,-320.800489,0.00015707,2]
[333412195,1722115853328,-320.800489,0.00015707,2]
[333412197,1722115853338,-320.800489,0.00015707,2]
[333412200,1722115853350,-320.800489,0.00015707,2]
[333412202,1722115853359,-617.594083,0.00015707,2]
[333412204,1722115853369,-617.594083,0.00015707,2]
[333412205,1722115853379,-617.594083,0.00015707,2]
[333412207,1722115853389,-617.594083,0.00015707,2]
[333412209,1722115853399,-500.0,0.0001589,2]
[333412211,1722115853409,-202.351404,0.0001589,2]
[333412213,1722115853419,-507.22899365,0.0001589,2]
[333412215,1722115853429,-151.0,0.0001589,2]
[333412218,1722115853438,-151.0,0.0001589,2]
[333412220,1722115853448,-500.0,0.0001589,2]
[333412222,1722115853457,-500.0,0.0001589,2]
[333412224,1722115853467,-500.0,0.0001589,2]
[333412226,1722115853477,-151.0,0.0001589,2]
[333412228,1722115853486,-500.0,0.0001589,2]
[333412230,1722115853497,-500.0,0.0001589,2]
[333412231,1722115853506,-500.0,0.0001589,2]
[333412233,1722115853516,-500.0,0.0001589,2]
[333412236,1722115853526,-755.62,0.0001589,2]
[333412238,1722115853536,-500.0,0.0001589,2]
[333412239,1722115853547,-500.0,0.0001589,2]
[333412240,1722115853557,-726.78,0.0001589,2]
[333412241,1722115853566,-500.0,0.0001589,2]
[333412242,1722115853575,-500.0,0.0001589,2]
[333412243,1722115853586,-2353.65,0.0001589,2]
[333412244,1722115853596,-999.54,0.0001589,2]
[333412245,1722115853606,-500.0,0.0001589,2]
[333412246,1722115853616,-500.0,0.0001589,2]
[333412247,1722115853626,-500.0,0.0001589,2]
[333412248,1722115853635,-500.0,0.0001589,2]
[333412249,1722115853646,-581.36,0.0001589,2]
[333412250,1722115853656,-500.0,0.0001589,2]
[333412251,1722115853666,-500.0,0.0001589,2]
[333412252,1722115853675,-620.82,0.0001589,2]
[333412253,1722115853685,-500.0,0.0001589,2]
[333412254,1722115853695,-183.82475717,0.0001589,2]
[333412256,1722115853704,-500.0,0.0001589,2]
[333412258,1722115853714,-500.0,0.0001589,2]
[333412260,1722115853723,-696.25,0.0001589,2]
[333412262,1722115853733,-1033.33,0.0001589,2]
[333412264,1722115853743,-1795.02,0.0001589,2]
[333412266,1722115853753,-500.0,0.0001589,2]
[333412268,1722115853763,-500.0,0.0001589,2]
[333412270,1722115853772,-500.0,0.0001589,2]
[333412272,1722115853782,-500.0,0.0001589,2]
[333412274,1722115853791,-500.0,0.0001589,2]
[333412276,1722115853804,-500.0,0.0001589,2]
[333412278,1722115853814,-717.11,0.0001589,2]
[333412280,1722115853823,-500.0,0.0001589,2]
[333412282,1722115853833,-500.0,0.0001589,2]
[333412284,1722115853843,-500.0,0.0001589,2]
[333412286,1722115853852,-581.03,0.0001589,2]
[333412288,1722115853861,-500.0,0.0001589,2]
[333412289,1722115853871,-632.23,0.0001589,2]
[333412291,1722115853880,-683.774394,0.00016,2]
[333412293,1722115853891,-150.112233,0.00016,2]
[333412295,1722115853900,-500.0,0.00016164,2]
[333412297,1722115853910,-500.0,0.00016164,2]
[333412299,1722115853919,-500.0,0.00016164,2]
[333412301,1722115853929,-155.49573149,0.00016164,2]
[333412303,1722115853939,-500.0,0.00016164,2]
[333412305,1722115853949,-500.0,0.00016164,2]
[333412307,1722115853959,-500.0,0.00016164,2]
[333412309,1722115853968,-500.0,0.00016164,2]
[333412311,1722115853979,-755.62,0.00016164,2]
[333412313,1722115853988,-500.0,0.00016164,2]
[333412315,1722115853998,-500.0,0.00016164,2]
[333412317,1722115854008,-726.78,0.00016164,2]
[333412319,1722115854018,-500.0,0.00016164,2]
[333412321,1722115854028,-500.0,0.00016164,2]
[333412323,1722115854037,-2353.65,0.00016164,2]
[333412325,1722115854048,-999.54,0.00016164,2]
[333412327,1722115854058,-500.0,0.00016164,2]
[333412329,1722115854068,-500.0,0.00016164,2]
[333412331,1722115854079,-255.60583199,0.00016164,2]
[333412333,1722115854097,-244.39416801,0.00016164,2]
[333412335,1722115854107,-500.0,0.00016164,2]
[333412337,1722115854117,-581.36,0.00016164,2]
[333412339,1722115854126,-500.0,0.00016164,2]
[333412341,1722115854136,-280.90007691,0.00016164,2]
[333412344,1722115854153,-219.09992309,0.00016164,2]
[333412346,1722115854163,-620.82,0.00016164,2]
[333412348,1722115854173,-500.0,0.00016164,2]
[333412350,1722115854183,-500.0,0.00016164,2]
[333412352,1722115854193,-500.0,0.00016164,2]
[333412354,1722115854203,-696.25,0.00016164,2]
[333412356,1722115854213,-1033.33,0.00016164,2]
[333412358,1722115854223,-1795.02,0.00016164,2]
[333412360,1722115854232,-500.0,0.00016164,2]
[333412362,1722115854241,-500.0,0.00016164,2]
[333412364,1722115854251,-500.0,0.00016164,2]
[333412366,1722115854262,-500.0,0.00016164,2]
[333412368,1722115854272,-500.0,0.00016164,2]
[333412370,1722115854282,-500.0,0.00016164,2]
[333412372,1722115854292,-717.11,0.00016164,2]
[333412374,1722115854304,-500.0,0.00016164,2]
[333412376,1722115854314,-500.0,0.00016164,2]
[333412378,1722115854324,-500.0,0.00016164,2]
[333412380,1722115854334,-581.03,0.00016164,2]
[333412394,1722115854458,-500.0,0.00016164,2]
[333412396,1722115854469,-632.23,0.00016164,2]
[333412398,1722115854479,-500.0,0.00016438,2]
[333412400,1722115854488,-368.78442407,0.00016438,2]
[333412402,1722115854498,-500.0,0.00016438,2]
[333412404,1722115854509,-500.0,0.00016438,2]
[333412406,1722115854519,-500.0,0.00016438,2]
[333412408,1722115854529,-500.0,0.00016438,2]
[333412410,1722115854539,-209.1,0.00016438,2]
[333412412,1722115854551,-500.0,0.00016438,2]
[333412414,1722115854562,-755.62,0.00016438,2]
[333412416,1722115854572,-500.0,0.00016438,2]
[333412418,1722115854582,-500.0,0.00016438,2]
[333412420,1722115854593,-726.78,0.00016438,2]
[333412422,1722115854602,-500.0,0.00016438,2]
[333412424,1722115854611,-500.0,0.00016438,2]
[333412426,1722115854621,-2353.65,0.00016438,2]
[333412428,1722115854631,-999.54,0.00016438,2]
[333412430,1722115854642,-500.0,0.00016438,2]
[333412432,1722115854652,-500.0,0.00016438,2]
[333412434,1722115854662,-500.0,0.00016438,2]
[333412436,1722115854672,-500.0,0.00016438,2]
[333412438,1722115854682,-581.36,0.00016438,2]
[333412440,1722115854691,-500.0,0.00016438,2]
[333412442,1722115854702,-151.0,0.00016438,2]
[333412444,1722115854711,-500.0,0.00016438,2]
[333412446,1722115854721,-620.82,0.00016438,2]
[333412447,1722115854730,-151.0,0.00016438,2]
[333412449,1722115854740,-500.0,0.00016438,2]
[333412451,1722115854750,-500.0,0.00016438,2]
[333412453,1722115854759,-500.0,0.00016438,2]
[333412455,1722115854769,-696.25,0.00016438,2]
[333412457,1722115854779,-1033.33,0.00016438,2]
[333412459,1722115854789,-1795.02,0.00016438,2]
[333412461,1722115854803,-500.0,0.00016438,2]
[333412463,1722115854813,-500.0,0.00016438,2]
[333412465,1722115854824,-500.0,0.00016438,2]
[333412467,1722115854834,-500.0,0.00016438,2]
[333412469,1722115854847,-500.0,0.00016438,2]
[333412471,1722115854857,-500.0,0.00016438,2]
[333412473,1722115854866,-717.11,0.00016438,2]
[333412475,1722115854877,-500.0,0.00016438,2]
[333412477,1722115854886,-500.0,0.00016438,2]
[333412479,1722115854896,-500.0,0.00016438,2]
[333412481,1722115854906,-581.03,0.00016438,2]
[333412483,1722115854915,-500.0,0.00016438,2]
[333412485,1722115854926,-632.23,0.00016438,2]
[333412487,1722115854936,-1549.426003,0.00016452,2]
[333412489,1722115854946,-638.29394499,0.000165,2]
[333412491,1722115854956,-299.34074116,0.00016603,2]
[333412493,1722115854966,-500.0,0.00016712,2]
[333412495,1722115854977,-500.0,0.00016712,2]
[333412497,1722115854986,-500.0,0.00016712,2]
[333412499,1722115854996,-500.0,0.00016712,2]
[333412501,1722115855005,-500.0,0.00016712,2]
[333412503,1722115855015,-209.1,0.00016712,2]
[333412505,1722115855025,-500.0,0.00016712,2]
[333412507,1722115855035,-755.62,0.00016712,2]
[333412509,1722115855045,-500.0,0.00016712,2]
[333412511,1722115855055,-500.0,0.00016712,2]
[333412513,1722115855065,-726.78,0.00016712,2]
[333412515,1722115855075,-500.0,0.00016712,2]
[333412517,1722115855090,-500.0,0.00016712,2]
[333412519,1722115855100,-2353.65,0.00016712,2]
[333412521,1722115855110,-565.27496369,0.00016712,2]
[333412532,1722115855211,-434.26503631,0.00016712,2]
[333412534,1722115855221,-500.0,0.00016712,2]
[333412536,1722115855231,-500.0,0.00016712,2]
[333412538,1722115855241,-351.32737165,0.00016712,2]
[333412540,1722115855251,-500.0,0.00016712,2]
[333412542,1722115855260,-581.36,0.00016712,2]
[333412544,1722115855270,-271.07800811,0.00016712,2]
[333412546,1722115855279,-500.0,0.00016712,2]
[333412548,1722115855289,-620.82,0.00016712,2]
[333412550,1722115855299,-500.0,0.00016712,2]
[333412552,1722115855310,-500.0,0.00016712,2]
[333412554,1722115855320,-500.0,0.00016712,2]
[333412556,1722115855329,-696.25,0.00016712,2]
[333412558,1722115855339,-1033.33,0.00016712,2]
[333412560,1722115855349,-1795.02,0.00016712,2]
[333412562,1722115855360,-500.0,0.00016712,2]
[333412564,1722115855370,-500.0,0.00016712,2]
[333412566,1722115855381,-500.0,0.00016712,2]
[333412568,1722115855391,-500.0,0.00016712,2]
[333412570,1722115855400,-500.0,0.00016712,2]
[333412572,1722115855410,-500.0,0.00016712,2]
[333412574,1722115855420,-717.11,0.00016712,2]
[333412576,1722115855430,-500.0,0.00016712,2]
[333412578,1722115855440,-500.0,0.00016712,2]
[333412580,1722115855450,-500.0,0.00016712,2]
[333412582,1722115855460,-581.03,0.00016712,2]
[333412584,1722115855470,-500.0,0.00016712,2]
[333412586,1722115855480,-632.23,0.00016712,2]
[333412588,1722115855490,-823.0,0.00016719,2]
[333412590,1722115855499,-500.0,0.00016986,2]
[333412592,1722115855509,-500.0,0.00016986,2]
[333412594,1722115855519,-433.62970677,0.00016986,2]
[333412596,1722115855528,-500.0,0.00016986,2]
[333412598,1722115855539,-314.66525314,0.00016986,2]
[333412600,1722115855549,-151.0,0.00016986,2]
[333412602,1722115855559,-209.1,0.00016986,2]
[333412604,1722115855568,-151.0,0.00016986,2]
[333412606,1722115855578,-500.0,0.00016986,2]
[333412608,1722115855587,-151.0,0.00016986,2]
[333412610,1722115855597,-755.62,0.00016986,2]
[333412612,1722115855606,-151.0,0.00016986,2]
[333412614,1722115855616,-500.0,0.00016986,2]
[333412616,1722115855627,-151.0,0.00016986,2]
[333412618,1722115855636,-500.0,0.00016986,2]
[333412620,1722115855646,-726.78,0.00016986,2]
[333412622,1722115855656,-500.0,0.00016986,2]
[333412624,1722115855666,-299.508339,0.00016986,2]
[333412626,1722115855675,-500.0,0.00016986,2]
[333412628,1722115855686,-299.508339,0.00016986,2]
[333412630,1722115855696,-2353.65,0.00016986,2]
[333412632,1722115855705,-151.0,0.00016986,2]
[333412634,1722115855714,-999.54,0.00016986,2]
[333412636,1722115855724,-500.0,0.00016986,2]
[333412638,1722115855733,-151.0,0.00016986,2]
[333412640,1722115855743,-500.0,0.00016986,2]
[333412642,1722115855753,-500.0,0.00016986,2]
[333412644,1722115855762,-581.36,0.00016986,2]
[333412646,1722115855771,-500.0,0.00016986,2]
[333412648,1722115855781,-620.82,0.00016986,2]
[333412650,1722115855790,-500.0,0.00016986,2]
[333412652,1722115855802,-500.0,0.00016986,2]
[333412654,1722115855812,-500.0,0.00016986,2]
[333412656,1722115855822,-696.25,0.00016986,2]
[333412658,1722115855833,-1033.33,0.00016986,2]
[333412661,1722115855846,-1795.02,0.00016986,2]
[333412663,1722115855858,-500.0,0.00016986,2]
[333412665,1722115855868,-500.0,0.00016986,2]
[333412667,1722115855877,-500.0,0.00016986,2]
[333412669,1722115855887,-500.0,0.00016986,2]
[333412671,1722115855897,-500.0,0.00016986,2]
[333412673,1722115855906,-500.0,0.00016986,2]
[333412675,1722115855916,-717.11,0.00016986,2]
[333412677,1722115855925,-6.71882508,0.00016986,2]
[333412680,1722115855938,-493.28117492,0.00016986,2]
[333412682,1722115855947,-500.0,0.00016986,2]
[333412684,1722115855957,-500.0,0.00016986,2]
[333412686,1722115855966,-581.03,0.00016986,2]
[333412688,1722115855975,-617.594083,0.00016986,2]
[333412689,1722115855985,-500.0,0.00016986,2]
[333412691,1722115855995,-617.594083,0.00016986,2]
[333412693,1722115856005,-483.52585961,0.00016986,2]
[333412883,1722115957458,273.37336231,9.9e-05,2]
[333412886,1722116759298,-192.93,0.00010959,2]
[333412887,1722116759320,-160.78,0.00010959,2]
[333412888,1722116759343,-525.82396242,0.00010959,2]
[333412889,1722116831097,-278.08603758,0.00010959,2]
[333412890,1722116831120,-3013.90691591,0.00012323,2]